[Event "Nakhchivan Premium 2021"]
[Site "Nakhchivan"]
[Date "2021.03.25"]
[Round "4.6"]
[White "Ahmadova, Yegana"]
[Black "Baghirov, Orkhan"]
[Result "0-1"]
[ECO "C02"]
[WhiteElo "1421"]
[BlackElo "1473"]
[Annotator "NA RC"]
[PlyCount "102"]
[EventDate "2021.03.14"]
[EventType "tourn"]
[EventCountry "AZE"]
[SourceTitle "playchess.com"]
[Source "ChessBase"]
[SourceQuality "1"]
[TimeControl "5400+30"]

1. e4 {[%emt 0:00:00]} e6 {[%emt 0:00:00]} 2. d4 {[%emt 0:00:00]} d5 {[%emt 0:00:00]} 3. e5 {[%emt 0:00:00]} c5 {[%emt 0:00:00]} 4. c3 {[%emt 0:00:00]} Nc6 {[%emt 0:00:11]} 5. Nf3 {[%emt 0:00:04]} f6 {[%emt 0:00:40]} 6. Bd3 {[%emt 0:02:20]} cxd4 {[%emt 0:01:30]} 7. cxd4 {[%emt 0:00:05]} Bd7 {[%emt 0:01:09]} 8. Nc3 {[%emt 0:04:21]} fxe5 {[%emt 0:03:48]} 9. dxe5 {[%emt 0:00:23]} g6 {[%emt 0:00:03]} 10. Bg5 {[%emt 0:05:41]} Qb6 {[%emt 0:03:12]} 11. Qb1 {[%emt 0:02:51]} Bg7 {[%emt 0:04:42]} 12. Bxg6+ {[%emt 0:10:57]} hxg6 {[%emt 0:01:03]} 13. Qxg6+ {[%emt 0:00:06]} Kf8 {[%emt 0:00:20]} 14. Bf6 {[%emt 0:01:48]} Nxf6 {[%emt 0:01:50]} 15. exf6 {[%emt 0:00:12]} Bh6 {[%emt 0:00:05]} 16. Ng5 {[%emt 0:01:31]} Ne5 {[%emt 0:04:29]} 17. Nh7+ {[%emt 0:02:35]} Rxh7 {[%emt 0:00:07]} 18. Qxh7 {[%emt 0:00:05]} Nf7 {[%emt 0:00:03]} 19. O-O {[%emt 0:17:38]} Qxb2 {[%emt 0:18:46]} 20. Rac1 {[%emt 0:11:41]} Bc6 {[%emt 0:11:09]} 21. Rc2 {[%emt 0:05:14]} Qb4 {[%emt 0:02:42]} 22. Ne2 {[%emt 0:10:50]} Qh4 {[%emt 0:07:27]} 23. Qg6 {[%emt 0:15:39]} Qg5 {[%emt 0:16:41]} 24. Qxg5 Bxg5 {[%emt 0:00:06]} 25. Nd4 {[%emt 0:02:02]} Nd8 {[%emt 0:01:36]} 26. f4 {[%emt 0:03:17]} Bxf6 {[%emt 0:01:16]} 27. Nf3 {[%emt 0:00:16]} Nf7 {[%emt 0:05:17]} 28. g4 {[%emt 0:01:00]} Ke7 {[%emt 0:00:51]} 29. g5 {[%emt 0:00:20]} Bh8 {[%emt 0:00:40]} 30. g6 {[%emt 0:01:15]} Rg8 {[%emt 0:00:38]} 31. Rg2 {[%emt 0:00:57]} Nd6 {[%emt 0:00:41]} 32. Ne5 {[%emt 0:00:43]} Bxe5 {[%emt 0:00:28]} 33. fxe5 {[%emt 0:00:06]} Nf5 {[%emt 0:00:01]} 34. Rg5 {[%emt 0:00:44]} Be8 {[%emt 0:00:54]} 35. Rc1 {[%emt 0:00:52]} Kd7 {[%emt 0:00:26]} 36. g7 {[%emt 0:01:06]} Rxg7 {[%emt 0:01:01]} 37. Rxg7+ {[%emt 0:00:02]} Nxg7 {[%emt 0:00:01]} 38. Kf2 {[%emt 0:00:13]} Nf5 {[%emt 0:00:19]} 39. Kf3 {[%emt 0:00:42]} b5 {[%emt 0:03:33]} 40. Kg4 {[%emt 0:00:00]} d4 {[%emt 0:00:00]} 41. Kf4 {[%emt 0:00:00]} Bh5 {[%emt 0:00:00]} 42. Rc2 {[%emt 0:00:00]} d3 {[%emt 0:00:00]} 43. Rd2 {[%emt 0:00:00]} Be2 {[%emt 0:00:00]} 44. Ke4 {[%emt 0:00:00]} Kc6 {[%emt 0:00:00]} 45. Rb2 {[%emt 0:00:00]} Kc5 {[%emt 0:00:00]} 46. h4 {[%emt 0:00:00]} Kc4 {[%emt 0:00:00]} 47. h5 {[%emt 0:00:00]} Kc3 {[%emt 0:00:00]} 48. h6 {[%emt 0:00:00]} Nxh6 {[%emt 0:00:00]} 49. Rb3+ {[%emt 0:00:00]} Kc2 {[%emt 0:00:00]} 50. Rxb5 {[%emt 0:00:00]} d2 {[%emt 0:00:00]} 51. Rc5+ {[%emt 0:00:00]} Kb2 {[%emt 0:00:00]} 0-1

[Event "Nakhchivan Premium 2021"]
[Site "Nakhchivan"]
[Date "2021.03.26"]
[Round "5.2"]
[White "Babayev, Talib"]
[Black "Ahmadova, Yegana"]
[Result "1-0"]
[ECO "B38"]
[WhiteElo "2282"]
[BlackElo "1421"]
[Annotator "ChessBase"]
[PlyCount "77"]
[EventDate "2021.03.14"]
[EventType "tourn"]
[EventCountry "AZE"]
[SourceTitle "playchess.com"]
[Source "ChessBase"]
[SourceQuality "1"]
[TimeControl "5400+30"]

1. e4 {[%emt 0:00:00]} c5 {[%emt 0:00:00]} 2. Nf3 {[%emt 0:00:00]} Nc6 {[%emt 0:00:00]} 3. d4 {[%emt 0:00:00]} cxd4 {[%emt 0:00:00]} 4. Nxd4 {[%emt 0:00:00]} g6 {[%emt 0:00:00]} 5. c4 {[%emt 0:00:02]} Bg7 {[%emt 0:00:00]} 6. Be3 {[%emt 0:00:07]} Nf6 {[%emt 0:00:00]} 7. Nc3 {[%emt 0:00:07]} O-O {[%emt 0:00:01]} 8. Be2 {[%emt 0:00:10]} d6 {[%emt 0:00:05]} 9. O-O {[%emt 0:00:13]} Bd7 {[%emt 0:00:07]} 10. Nc2 {[%emt 0:00:09]} Rc8 {[%emt 0:06:21]} 11. f3 {[%emt 0:04:46]} a5 {[%emt 0:14:39]} 12. Qd2 {[%emt 0:02:06]} Ne5 {[%emt 0:02:39]} 13. b3 {[%emt 0:01:48]} Nc6 {[%emt 0:06:52]} 14. Rac1 {[%emt 0:00:29]} Nb4 {[%emt 0:02:54]} 15. Nd4 {[%emt 0:05:04]} Nc6 {[%emt 0:03:55]} 16. Ndb5 {[%emt 0:03:27]} Be6 {[%emt 0:07:39]} 17. Kh1 {[%emt 0:06:22]} Nd7 {[%emt 0:03:56]} 18. f4 {[%emt 0:04:26]} f5 {[%emt 0:02:27]} 19. exf5 {[%emt 0:00:35]} Bxf5 {[%emt 0:00:30]} 20. Qd5+ {[%emt 0:01:33]} Kh8 {[%emt 0:00:36]} 21. g4 {[%emt 0:00:33]} Nf6 {[%emt 0:00:22]} 22. Qg2 {[%emt 0:00:09]} Bd7 {[%emt 0:00:50]} 23. Rcd1 {[%emt 0:06:02]} Ne8 {[%emt 0:05:07]} 24. Nd5 {[%emt 0:04:34]} Be6 {[%emt 0:08:13]} 25. Nb6 {[%emt 0:02:40]} Rb8 {[%emt 0:00:27]} 26. c5 {[%emt 0:00:23]} Nc7 {[%emt 0:03:04]} 27. cxd6 {[%emt 0:05:02]} Nxb5 {[%emt 0:01:25]} 28. Bxb5 {[%emt 0:00:21]} exd6 {[%emt 0:00:53]} 29. Bc4 {[%emt 0:05:39]} Qe7 {[%emt 0:04:33]} 30. Rfe1 {[%emt 0:00:49]} Bxc4 {[%emt 0:02:00]} 31. Nxc4 {[%emt 0:00:11]} Qf7 {[%emt 0:07:26]} 32. Nxd6 {[%emt 0:01:28]} Qc7 {[%emt 0:00:58]} 33. Nb5 {[%emt 0:05:08]} Qf7 {[%emt 0:02:49]} 34. f5 {[%emt 0:00:26]} Rbd8 {[%emt 0:02:12]} 35. Nd6 {[%emt 0:01:12]} Qc7 {[%emt 0:01:17]} 36. Bf4 {[%emt 0:02:52]} gxf5 {[%emt 0:06:27]} 37. gxf5 {[%emt 0:00:52]} Qb6 {[%emt 0:04:45]} 38. Rg1 {[%emt 0:02:44]} Bd4 {[%emt 0:02:48]} 39. Qg8+ {[%emt 0:00:25]} 1-0

[Event "Nakhchivan Premium 2021"]
[Site "Nakhchivan"]
[Date "2021.03.26"]
[Round "5.3"]
[White "Hasanzade, Toghrul"]
[Black "Gasimov, Parviz"]
[Result "1-0"]
[ECO "E47"]
[WhiteElo "2322"]
[BlackElo "2337"]
[Annotator "ChessBase"]
[PlyCount "91"]
[EventDate "2021.03.14"]
[EventType "tourn"]
[EventCountry "AZE"]
[SourceTitle "playchess.com"]
[Source "ChessBase"]
[SourceQuality "1"]
[TimeControl "5400+30"]

1. d4 {[%emt 0:00:00]} e6 {[%emt 0:04:04]} 2. c4 {[%emt 0:00:00]} Nf6 {[%emt 0:00:20]} 3. Nc3 {[%emt 0:00:00]} Bb4 {[%emt 0:01:30]} 4. e3 {[%emt 0:00:00]} O-O {[%emt 0:02:04]} 5. Bd3 {[%emt 0:00:07]} c5 {[%emt 0:01:20]} 6. a3 {[%emt 0:00:20]} Bxc3+ {[%emt 0:09:18]} 7. bxc3 {[%emt 0:00:04]} d5 {[%emt 0:00:05]} 8. Ne2 {[%emt 0:01:38]} b6 {[%emt 0:05:13]} 9. cxd5 {[%emt 0:00:49]} exd5 {[%emt 0:00:21]} 10. O-O {[%emt 0:00:19]} Ba6 {[%emt 0:02:44]} 11. Ng3 {[%emt 0:02:25]} Bxd3 {[%emt 0:05:07]} 12. Qxd3 {[%emt 0:00:13]} Nc6 {[%emt 0:01:11]} 13. Bb2 {[%emt 0:01:59]} Re8 {[%emt 0:07:27]} 14. f3 {[%emt 0:01:50]} h5 {[%emt 0:04:51]} 15. e4 {[%emt 0:05:30]} c4 {[%emt 0:06:28]} 16. Qe2 {[%emt 0:24:51]} h4 {[%emt 0:03:44]} 17. Nf5 {[%emt 0:00:23]} dxe4 {[%emt 0:06:41]} 18. fxe4 {[%emt 0:00:32]} Rxe4 {[%emt 0:02:47]} 19. Qxc4 {[%emt 0:00:39]} Rc8 {[%emt 0:09:00]} 20. Qb5 {[%emt 0:09:29]} Ne7 {[%emt 0:06:44]} 21. Nh6+ {[%emt 0:08:54]} Kf8 {[%emt 0:01:34]} 22. a4 {[%emt 0:04:15]} Qd5 {[%emt 0:03:52]} 23. Qd3 {[%emt 0:03:26]} Qe6 {[%emt 0:03:56]} 24. Ba3 {[%emt 0:03:32]} Re3 {[%emt 0:00:41]} 25. Qd2 {[%emt 0:09:38]} Re2 {[%emt 0:02:49]} 26. Qxe2 {[%emt 0:15:54]} Qxe2 {[%emt 0:00:28]} 27. Rfe1 {[%emt 0:00:22]} Qxe1+ {[%emt 0:03:23]} 28. Rxe1 {[%emt 0:00:08]} gxh6 {[%emt 0:00:28]} 29. Rxe7 {[%emt 0:02:56]} Kg8 {[%emt 0:00:37]} 30. Bb2 {[%emt 0:01:37]} a5 {[%emt 0:01:22]} 31. Re5 {[%emt 0:01:02]} Rc4 {[%emt 0:02:54]} 32. Rb5 {[%emt 0:00:49]} Nd7 {[%emt 0:01:03]} 33. Kf2 {[%emt 0:01:39]} Rxa4 {[%emt 0:00:14]} 34. Ke3 {[%emt 0:00:39]} Ra2 {[%emt 0:00:42]} 35. c4 {[%emt 0:00:41]} a4 {[%emt 0:00:09]} 36. Bc3 {[%emt 0:00:24]} Rxg2 {[%emt 0:01:56]} 37. c5 {[%emt 0:00:07]} Rg5 {[%emt 0:00:28]} 38. c6 {[%emt 0:00:35]} Nf6 {[%emt 0:00:50]} 39. c7 {[%emt 0:00:19]} Rxb5 {[%emt 0:00:13]} 40. c8=Q+ {[%emt 0:00:00]} Kg7 {[%emt 0:00:00]} 41. Qc6 {[%emt 0:00:00]} Nd5+ {[%emt 0:00:00]} 42. Ke4 {[%emt 0:00:00]} Nf6+ {[%emt 0:00:00]} 43. Kd3 {[%emt 0:00:00]} Rf5 {[%emt 0:00:00]} 44. d5 {[%emt 0:00:00]} a3 {[%emt 0:00:00]} 45. d6 {[%emt 0:00:00]} Rc5 {[%emt 0:00:00]} 46. Qxc5 {[%emt 0:00:00]} 1-0

[Event "Nakhchivan Premium 2021"]
[Site "Nakhchivan"]
[Date "2021.03.26"]
[Round "5.4"]
[White "Mammadov, Sadig"]
[Black "Seyid, Huseyn"]
[Result "1/2-1/2"]
[ECO "D45"]
[WhiteElo "2237"]
[BlackElo "1660"]
[Annotator "ChessBase"]
[PlyCount "100"]
[EventDate "2021.03.14"]
[EventType "tourn"]
[EventCountry "AZE"]
[SourceTitle "playchess.com"]
[Source "ChessBase"]
[SourceQuality "1"]
[TimeControl "5400+30"]

1. d4 {[%emt 0:00:00]} d5 {[%emt 0:00:00]} 2. c4 {[%emt 0:00:00]} e6 {[%emt 0:00:00]} 3. Nc3 {[%emt 0:00:11]} Nf6 {[%emt 0:00:00]} 4. e3 {[%emt 0:01:20]} c6 {[%emt 0:01:00]} 5. Nf3 {[%emt 0:00:31]} Nbd7 {[%emt 0:00:14]} 6. Qc2 {[%emt 0:00:17]} Bd6 {[%emt 0:01:06]} 7. b3 {[%emt 0:00:14]} O-O {[%emt 0:03:23]} 8. Bb2 {[%emt 0:00:23]} b6 {[%emt 0:00:17]} 9. Bd3 {[%emt 0:00:23]} Re8 {[%emt 0:01:16]} 10. O-O {[%emt 0:02:40]} Bb7 {[%emt 0:01:46]} 11. e4 {[%emt 0:03:21]} dxe4 {[%emt 0:00:58]} 12. Nxe4 {[%emt 0:00:10]} Nxe4 {[%emt 0:01:52]} 13. Bxe4 {[%emt 0:00:01]} Nf6 {[%emt 0:08:34]} 14. Bd3 {[%emt 0:07:14]} h6 {[%emt 0:12:04]} 15. Rad1 {[%emt 0:06:58]} Qe7 {[%emt 0:14:08]} 16. Ne5 {[%emt 0:05:04]} c5 {[%emt 0:04:17]} 17. dxc5 {[%emt 0:00:20]} bxc5 {[%emt 0:06:29]} 18. Qe2 {[%emt 0:03:22]} Rad8 {[%emt 0:03:41]} 19. Rd2 {[%emt 0:08:46]} Bc7 {[%emt 0:08:09]} 20. Bc3 {[%emt 0:00:45]} Nd7 {[%emt 0:04:26]} 21. Nxd7 {[%emt 0:00:25]} Rxd7 {[%emt 0:00:36]} 22. Qg4 {[%emt 0:00:19]} f5 {[%emt 0:01:27]} 23. Qe2 {[%emt 0:11:46]} Bf4 {[%emt 0:05:54]} 24. Rdd1 {[%emt 0:04:54]} Red8 {[%emt 0:04:09]} 25. g3 {[%emt 0:12:35]} Bc7 {[%emt 0:01:15]} 26. Rfe1 {[%emt 0:00:24]} Qf7 {[%emt 0:08:10]} 27. Bc2 {[%emt 0:02:09]} Rxd1 {[%emt 0:00:43]} 28. Bxd1 {[%emt 0:00:08]} Re8 {[%emt 0:05:52]} 29. f4 {[%emt 0:03:20]} Qd7 {[%emt 0:00:49]} 30. Kf2 {[%emt 0:03:47]} Qc6 {[%emt 0:01:47]} 31. Qf3 {[%emt 0:02:18]} Kf7 {[%emt 0:00:32]} 32. Qxc6 {[%emt 0:03:20]} Bxc6 {[%emt 0:00:01]} 33. Bf3 {[%emt 0:02:05]} Bxf3 {[%emt 0:00:03]} 34. Kxf3 {[%emt 0:00:01]} Rd8 {[%emt 0:00:23]} 35. Ke2 {[%emt 0:00:24]} g6 {[%emt 0:01:01]} 36. Rb1 {[%emt 0:00:38]} e5 {[%emt 0:00:49]} 37. fxe5 {[%emt 0:01:08]} Ke6 {[%emt 0:00:27]} 38. Re1 {[%emt 0:02:09]} g5 {[%emt 0:00:42]} 39. a3 {[%emt 0:04:44]} f4 {[%emt 0:00:31]} 40. gxf4 {[%emt 0:00:00]} gxf4 {[%emt 0:00:00]} 41. b4 {[%emt 0:00:00]} Kf5 {[%emt 0:00:00]} 42. Kf2 {[%emt 0:00:00]} Rd3 {[%emt 0:00:00]} 43. e6 {[%emt 0:00:00]} Bd6 {[%emt 0:00:00]} 44. e7 {[%emt 0:00:00]} Bxe7 {[%emt 0:00:00]} 45. Rxe7 {[%emt 0:00:00]} Rxc3 {[%emt 0:00:00]} 46. Rxa7 {[%emt 0:00:00]} cxb4 {[%emt 0:00:00]} 47. axb4 {[%emt 0:00:00]} Rxc4 {[%emt 0:00:00]} 48. Rf7+ {[%emt 0:00:00]} Ke4 {[%emt 0:00:00]} 49. Re7+ {[%emt 0:00:00]} Kf5 {[%emt 0:00:00]} 50. Rf7+ {[%emt 0:00:00]} Ke5 1/2-1/2

[Event "Nakhchivan Premium 2021"]
[Site "Nakhchivan"]
[Date "2021.03.26"]
[Round "5.5"]
[White "Aliyev, Aykhan"]
[Black "Ismayilov, Arturan"]
[Result "1-0"]
[ECO "B31"]
[WhiteElo "1683"]
[BlackElo "1663"]
[Annotator "NA"]
[PlyCount "125"]
[EventDate "2021.03.14"]
[EventType "tourn"]
[EventCountry "AZE"]
[SourceTitle "playchess.com"]
[Source "ChessBase"]
[SourceQuality "1"]
[TimeControl "5400+30"]

1. e4 {[%emt 0:00:00]} c5 {[%emt 0:00:00]} 2. Nf3 {[%emt 0:00:00]} Nc6 {[%emt 0:00:00]} 3. Bb5 {[%emt 0:02:12]} g6 {[%emt 0:00:15]} 4. O-O {[%emt 0:00:46]} Bg7 {[%emt 0:00:30]} 5. Re1 {[%emt 0:00:14]} Nf6 {[%emt 0:00:31]} 6. e5 {[%emt 0:00:06]} Nd5 {[%emt 0:02:48]} 7. Nc3 {[%emt 0:00:09]} Nc7 {[%emt 0:04:02]} 8. Bxc6 {[%emt 0:00:23]} dxc6 {[%emt 0:02:09]} 9. d3 {[%emt 0:03:22]} O-O {[%emt 0:02:09]} 10. Ne4 {[%emt 0:04:22]} b6 {[%emt 0:02:43]} 11. h3 {[%emt 0:00:37]} Ne6 {[%emt 0:08:11]} 12. Be3 {[%emt 0:27:50]} Qc7 {[%emt 0:03:25]} 13. Neg5 {[%emt 0:02:46]} Bxe5 {[%emt 0:06:39]} 14. Nxe6 {[%emt 0:03:07]} Bxe6 {[%emt 0:00:26]} 15. Nxe5 {[%emt 0:00:16]} Qxe5 {[%emt 0:00:01]} 16. Bh6 {[%emt 0:00:15]} Qxb2 {[%emt 0:00:01]} 17. Bxf8 {[%emt 0:00:06]} Rxf8 {[%emt 0:00:04]} 18. a4 {[%emt 0:00:08]} Rd8 {[%emt 0:01:37]} 19. a5 {[%emt 0:01:32]} b5 {[%emt 0:03:05]} 20. Qf3 {[%emt 0:11:09]} Rd6 {[%emt 0:03:23]} 21. c4 {[%emt 0:08:00]} b4 {[%emt 0:02:44]} 22. Qe3 {[%emt 0:08:10]} Qd4 {[%emt 0:03:11]} 23. Qxd4 {[%emt 0:02:51]} Rxd4 {[%emt 0:00:44]} 24. Re3 {[%emt 0:00:27]} Kf8 {[%emt 0:01:02]} 25. Kf1 {[%emt 0:10:04]} Ke8 {[%emt 0:00:09]} 26. Ke2 {[%emt 0:01:46]} Kd7 {[%emt 0:00:04]} 27. g4 {[%emt 0:04:39]} f5 {[%emt 0:02:41]} 28. f3 {[%emt 0:03:54]} Kd6 {[%emt 0:00:17]} 29. Rd1 {[%emt 0:01:38]} h6 {[%emt 0:01:20]} 30. Ke1 {[%emt 0:00:34]} h5 {[%emt 0:00:35]} 31. gxh5 {[%emt 0:01:17]} gxh5 {[%emt 0:00:18]} 32. Re2 {[%emt 0:00:17]} Rh4 {[%emt 0:07:52]} 33. Rh2 {[%emt 0:01:12]} f4 {[%emt 0:01:26]} 34. Ke2 {[%emt 0:00:19]} Bf5 {[%emt 0:02:50]} 35. Rg1 {[%emt 0:01:30]} Rxh3 {[%emt 0:13:18]} 36. Rxh3 {[%emt 0:00:33]} Bxh3 {[%emt 0:00:01]} 37. Rh1 {[%emt 0:00:41]} Bf5 {[%emt 0:00:47]} 38. Rxh5 {[%emt 0:00:08]} Bd7 {[%emt 0:08:03]} 39. d4 {[%emt 0:00:51]} cxd4 {[%emt 0:00:33]} 40. c5+ {[%emt 0:00:00]} Kc7 {[%emt 0:00:00]} 41. Kd3 {[%emt 0:00:00]} b3 {[%emt 0:00:00]} 42. Rh2 {[%emt 0:00:00]} Kb7 {[%emt 0:00:00]} 43. Re2 {[%emt 0:00:00]} Bf5+ {[%emt 0:00:00]} 44. Kxd4 {[%emt 0:00:00]} Ka6 {[%emt 0:00:00]} 45. Kc3 {[%emt 0:00:00]} Kxa5 {[%emt 0:00:00]} 46. Kxb3 {[%emt 0:00:00]} Kb5 {[%emt 0:00:00]} 47. Rxe7 {[%emt 0:00:00]} a5 {[%emt 0:00:00]} 48. Kc3 {[%emt 0:00:00]} a4 {[%emt 0:00:00]} 49. Rf7 {[%emt 0:00:00]} Be6 {[%emt 0:00:00]} 50. Rxf4 {[%emt 0:00:00]} a3 {[%emt 0:00:00]} 51. Re4 {[%emt 0:00:00]} Bd5 {[%emt 0:00:34]} 52. Re3 {[%emt 0:00:00]} Kxc5 {[%emt 0:01:06]} 53. f4 {[%emt 0:00:00]} a2 {[%emt 0:01:22]} 54. Kb2 {[%emt 0:00:00]} Kd4 {[%emt 0:05:39]} 55. Re7 {[%emt 0:05:12]} c5 {[%emt 0:01:24]} 56. f5 {[%emt 0:00:08]} Bb3 {[%emt 0:08:16]} 57. f6 {[%emt 0:00:52]} c4 {[%emt 0:00:02]} 58. Ra7 {[%emt 0:00:30]} Kd3 {[%emt 0:04:15]} 59. f7 {[%emt 0:00:41]} c3+ {[%emt 0:02:06]} 60. Kxb3 {[%emt 0:00:06]} c2 {[%emt 0:02:14]} 61. Kb2 {[%emt 0:00:10]} Kd2 {[%emt 0:00:31]} 62. Rd7+ {[%emt 0:00:07]} Ke2 {[%emt 0:00:43]} 63. Rc7 1-0

[Event "Nakhchivan Premium 2021"]
[Site "Nakhchivan"]
[Date "2021.03.26"]
[Round "5.6"]
[White "Garayev, Sadig"]
[Black "Babayeva, Nasrin"]
[Result "1-0"]
[ECO "C03"]
[WhiteElo "1781"]
[BlackElo "1564"]
[Annotator "NA"]
[PlyCount "57"]
[EventDate "2021.03.14"]
[EventType "tourn"]
[EventCountry "AZE"]
[SourceTitle "playchess.com"]
[Source "ChessBase"]
[SourceQuality "1"]
[TimeControl "5400+30"]

1. e4 {[%emt 0:00:00]} e6 {[%emt 0:00:00]} 2. d4 {[%emt 0:00:00]} d5 {[%emt 0:00:00]} 3. Nd2 {[%emt 0:00:00]} h6 {[%emt 0:00:00]} 4. Ngf3 {[%emt 0:00:01]} Nf6 {[%emt 0:00:00]} 5. e5 {[%emt 0:00:34]} Nfd7 {[%emt 0:00:15]} 6. Bd3 {[%emt 0:00:16]} c5 {[%emt 0:00:11]} 7. c3 {[%emt 0:00:01]} Nc6 {[%emt 0:00:22]} 8. O-O {[%emt 0:00:08]} g5 {[%emt 0:03:43]} 9. dxc5 {[%emt 0:03:35]} Ncxe5 {[%emt 0:02:02]} 10. Bb5 {[%emt 0:06:18]} Nxf3+ {[%emt 0:11:47]} 11. Nxf3 {[%emt 0:01:19]} Bxc5 {[%emt 0:01:11]} 12. b4 {[%emt 0:06:40]} Be7 {[%emt 0:00:37]} 13. Nd4 {[%emt 0:13:34]} O-O {[%emt 0:15:47]} 14. f4 {[%emt 0:06:49]} e5 {[%emt 0:18:38]} 15. Nf5 {[%emt 0:08:45]} exf4 16. Nxh6+ {[%emt 0:02:11]} Kh7 {[%emt 0:01:38]} 17. Nf5 {[%emt 0:05:24]} Nf6 {[%emt 0:04:00]} 18. Nd4 {[%emt 0:11:36]} Rh8 {[%emt 0:02:40]} 19. h4 {[%emt 0:15:11]} Ng4 {[%emt 0:12:07]} 20. Bxf4 {[%emt 0:08:28]} gxf4 {[%emt 0:06:43]} 21. Rxf4 {[%emt 0:00:00]} Bxh4 {[%emt 0:02:28]} 22. Qd3+ {[%emt 0:05:25]} Kg8 {[%emt 0:01:03]} 23. Raf1 {[%emt 0:02:24]} Bf2+ {[%emt 0:07:13]} 24. R1xf2 {[%emt 0:00:21]} Qh4 25. Qg6+ {[%emt 0:00:29]} fxg6 {[%emt 0:01:44]} 26. Rf8+ {[%emt 0:00:03]} Kg7 {[%emt 0:00:10]} 27. R2f7+ {[%emt 0:00:08]} Kh6 {[%emt 0:00:27]} 28. Rxh8+ {[%emt 0:00:08]} Kg5 {[%emt 0:00:01]} 29. Nf3# {[%emt 0:00:14]} 1-0

[Event "Nakhchivan Premium 2021"]
[Site "Nakhchivan"]
[Date "2021.03.27"]
[Round "6.2"]
[White "Ismayilov, Arturan"]
[Black "Garayev, Sadig"]
[Result "1-0"]
[ECO "C09"]
[WhiteElo "1663"]
[BlackElo "1781"]
[Annotator "NA RC"]
[PlyCount "109"]
[EventDate "2021.03.14"]
[EventType "tourn"]
[EventCountry "AZE"]
[SourceTitle "playchess.com"]
[Source "ChessBase"]
[SourceQuality "1"]
[TimeControl "5400+30"]

1. e4 {[%emt 0:00:00]} e6 {[%emt 0:00:00]} 2. d4 {[%emt 0:00:00]} d5 {[%emt 0:00:00]} 3. Nd2 {[%emt 0:00:00]} c5 {[%emt 0:00:00]} 4. exd5 {[%emt 0:00:00]} exd5 {[%emt 0:00:00]} 5. Ngf3 {[%emt 0:00:30]} Nc6 {[%emt 0:00:00]} 6. Bb5 {[%emt 0:00:23]} Bd6 {[%emt 0:00:06]} 7. dxc5 {[%emt 0:00:25]} Bxc5 {[%emt 0:00:19]} 8. O-O {[%emt 0:00:55]} Nge7 {[%emt 0:00:05]} 9. Nb3 {[%emt 0:01:10]} Bd6 {[%emt 0:00:09]} 10. h3 {[%emt 0:01:29]} O-O {[%emt 0:00:42]} 11. c3 {[%emt 0:00:55]} Bf5 {[%emt 0:06:11]} 12. Bd3 {[%emt 0:00:21]} Qd7 {[%emt 0:03:47]} 13. Re1 {[%emt 0:03:04]} Be4 {[%emt 0:16:23]} 14. Bxe4 {[%emt 0:02:18]} dxe4 {[%emt 0:00:08]} 15. Nc5 {[%emt 0:00:59]} Qf5 {[%emt 0:07:09]} 16. Nxe4 {[%emt 0:01:24]} Bc7 {[%emt 0:00:16]} 17. Bg5 {[%emt 0:08:10]} Ng6 {[%emt 0:02:59]} 18. Nd6 {[%emt 0:05:34]} Qc5 {[%emt 0:08:34]} 19. Ne4 {[%emt 0:03:45]} Qf5 {[%emt 0:04:15]} 20. Qc2 {[%emt 0:05:44]} Kh8 {[%emt 0:01:14]} 21. Qb3 {[%emt 0:04:20]} Nce5 {[%emt 0:08:51]} 22. Nd4 {[%emt 0:03:14]} Qc8 {[%emt 0:05:49]} 23. Nb5 {[%emt 0:10:35]} h6 {[%emt 0:00:56]} 24. Be3 {[%emt 0:02:27]} Nf3+ {[%emt 0:03:27]} 25. Kf1 {[%emt 0:14:10]} Nxe1 {[%emt 0:02:03]} 26. Rxe1 {[%emt 0:00:15]} a6 {[%emt 0:02:49]} 27. Nbd6 {[%emt 0:01:09]} Bxd6 {[%emt 0:01:43]} 28. Nxd6 {[%emt 0:00:02]} Qc6 {[%emt 0:06:25]} 29. Rd1 {[%emt 0:03:42]} b5 {[%emt 0:04:07]} 30. Nxf7+ {[%emt 0:04:46]} Kh7 {[%emt 0:00:20]} 31. Nd6 {[%emt 0:01:06]} Rad8 {[%emt 0:03:22]} 32. Qd5 {[%emt 0:01:10]} Qxd5 33. Rxd5 {[%emt 0:00:02]} Ne7 {[%emt 0:04:29]} 34. Rd2 {[%emt 0:01:08]} Rd7 {[%emt 0:02:30]} 35. Ne4 {[%emt 0:01:24]} Rxd2 {[%emt 0:00:03]} 36. Nxd2 {[%emt 0:00:21]} Nd5 {[%emt 0:00:07]} 37. Bd4 {[%emt 0:01:04]} Nf4 {[%emt 0:03:23]} 38. h4 {[%emt 0:02:16]} Re8 {[%emt 0:00:49]} 39. Be3 {[%emt 0:01:21]} Nd3 {[%emt 0:01:52]} 40. b3 {[%emt 0:00:00]} Rc8 {[%emt 0:00:00]} 41. Ne4 {[%emt 0:00:00]} Re8 {[%emt 0:00:00]} 42. f3 {[%emt 0:00:00]} a5 {[%emt 0:00:00]} 43. Ke2 {[%emt 0:00:00]} Ne5 {[%emt 0:00:00]} 44. Nd6 {[%emt 0:00:00]} Rb8 {[%emt 0:00:00]} 45. Ba7 {[%emt 0:00:00]} Rf8 {[%emt 0:00:00]} 46. Nxb5 {[%emt 0:00:00]} Ng6 {[%emt 0:00:00]} 47. g3 {[%emt 0:00:00]} Ne5 {[%emt 0:00:00]} 48. Nd4 {[%emt 0:00:00]} Kg6 {[%emt 0:00:00]} 49. a4 {[%emt 0:00:00]} Nd7 {[%emt 0:01:46]} 50. b4 {[%emt 0:00:00]} Ra8 51. Nc6 {[%emt 0:00:00]} Kf7 {[%emt 0:04:36]} 52. b5 Ke8 53. g4 {[%emt 0:00:00]} Rc8 {[%emt 0:00:54]} 54. Kd2 {[%emt 0:00:00]} Nf6 {[%emt 0:00:53]} 55. Nxa5 {[%emt 0:00:00]} 1-0